fUST/lending_fUST_20240813
["ID","MTS","AMOUNT","RATE_DAILY","PERIOD"]
[334710786,1723495832628,-300.0,0.00014539,2]
[334710787,1723495832637,-300.0,0.00014539,2]
[334710788,1723495832647,-38.98826351,0.00014539,2]
[334710789,1723495832659,-461.01173649,0.00014539,2]
[334710791,1723495832669,-500.0,0.00014539,2]
[334710793,1723495832680,-500.0,0.00014539,2]
[334710796,1723495832694,-500.0,0.00014539,2]
[334710798,1723495832704,-394.67961895,0.00014539,2]
[334710800,1723495832714,-500.0,0.00014539,2]
[334710802,1723495832723,-500.0,0.00014539,2]
[334710804,1723495832733,-500.0,0.00014539,2]
[334710806,1723495832743,-500.0,0.00014539,2]
[334710808,1723495832753,-434.36840723,0.00014539,2]
[334710813,1723495832786,-65.63159277,0.00014539,2]
[334710815,1723495832795,-500.0,0.00014539,2]
[334710816,1723495832805,-76.458422,0.00014539,2]
[334710867,1723495838847,-423.541578,0.00014539,2]
[334710868,1723495838857,-1898.90860869,0.0001454,2]
[334710869,1723495838867,-500.0,0.0001454,2]
[334710870,1723495838879,-2228.17,0.0001454,2]
[334710871,1723495838889,-7744.54,0.0001454,2]
[334710872,1723495838899,-1267.76,0.0001454,2]
[334710873,1723495838908,-1370.71,0.0001454,2]
[334710874,1723495838920,-844.33,0.0001454,2]
[334710875,1723495838929,-771.43,0.0001454,2]
[334710876,1723495838939,-509.42171938,0.0001454,2]
[334710877,1723495838949,-292.3722931,0.0001454,2]
[334710878,1723495838959,-500.0,0.0001454,2]
[334710879,1723495838968,-500.0,0.0001454,2]
[334710880,1723495838978,-500.0,0.0001454,2]
[334710881,1723495838987,-500.0,0.0001454,2]
[334710882,1723495839166,-500.0,0.0001454,2]
[334710883,1723495839176,-500.0,0.0001454,2]
[334710884,1723495839186,-500.0,0.0001454,2]
[334710885,1723495839195,-500.0,0.0001454,2]
[334710886,1723495839204,-500.0,0.0001454,2]
[334710887,1723495839214,-500.0,0.0001454,2]
[334710888,1723495839223,-500.0,0.0001454,2]
[334710889,1723495839232,-500.0,0.0001454,2]
[334710890,1723495839242,-500.0,0.0001454,2]
[334710891,1723495839251,-500.0,0.0001454,2]
[334710892,1723495839260,-500.0,0.0001454,2]
[334710893,1723495839270,-500.0,0.0001454,2]
[334710894,1723495839280,-379.85401784,0.0001454,2]
[334710895,1723495839290,-50055.30997844,0.00014541,2]
[334710896,1723495839299,-1581.5314073,0.0001455,2]
[334710897,1723495839309,-150.112233,0.000146,2]
[334710898,1723495839319,-150.112233,0.000146,2]
[334710899,1723495839329,-104480.481454,0.0001462,2]
[334710900,1723495839338,-104480.481454,0.00014629,2]
[334710901,1723495839347,-500.0,0.00014629,2]
[334710902,1723495839358,-500.0,0.00014629,2]
[334710903,1723495839367,-500.0,0.00014629,2]
[334710904,1723495839377,-500.0,0.00014629,2]
[334710905,1723495839388,-500.0,0.00014629,2]
[334710906,1723495839397,-500.0,0.00014629,2]
[334710907,1723495839406,-607.4,0.00014629,2]
[334710908,1723495839416,-500.0,0.00014629,2]
[334710909,1723495839425,-500.0,0.00014629,2]
[334710910,1723495839435,-500.0,0.00014629,2]
[334710911,1723495839443,-500.0,0.00014629,2]
[334710912,1723495839453,-500.0,0.00014629,2]
[334710913,1723495839463,-500.0,0.00014629,2]
[334710914,1723495839472,-207.41790081,0.00014629,2]
[334710915,1723495839481,-17180.0001935,0.0001463,2]
[334710916,1723495839490,-20962.00153596,0.0001463,2]
[334710938,1723495840759,-500.0,0.00014629,2]
[334710939,1723495840769,-187998.96137204,0.0001463,2]
[334710940,1723495840779,-126.12671077,0.00014638,2]
[334710966,1723495843809,-787.69328923,0.00014638,2]
[334710968,1723495843818,-500.0,0.00014638,2]
[334710970,1723495843829,-112.46195253,0.00014638,2]
[334711055,1723495846755,-881.0,0.0001454,2]
[334711057,1723495846765,-775.92965649,0.00014638,2]
[334711063,1723495846814,-3806.42839098,0.00014638,2]
[334711065,1723495846824,-1385.83,0.00014638,2]
[334711067,1723495846834,-1287.69,0.00014638,2]
[334711069,1723495846844,-4575.33,0.00014638,2]
[334711071,1723495846853,-1664.01,0.00014638,2]
[334711073,1723495846863,-500.0,0.00014638,2]
[334711075,1723495846873,-500.0,0.00014638,2]
[334711077,1723495846882,-500.0,0.00014638,2]
[334711079,1723495846895,-1607.47,0.00014638,2]
[334711081,1723495846904,-500.0,0.00014638,2]
[334711083,1723495846913,-1672.82,0.00014638,2]
[334711085,1723495846923,-1050.54,0.00014638,2]
[334711087,1723495846932,-500.0,0.00014638,2]
[334711089,1723495846942,-1704.41,0.00014638,2]
[334711091,1723495846951,-8137.85,0.00014638,2]
[334711093,1723495846961,-2576.02,0.00014638,2]
[334711095,1723495846970,-500.0,0.00014639,2]
[334711097,1723495846980,-645.75,0.00014639,2]
[334711099,1723495846989,-574.3,0.00014639,2]
[334711101,1723495846999,-697.88,0.00014639,2]
[334711103,1723495847008,-500.0,0.00014639,2]
[334711106,1723495847018,-832.08,0.00014639,2]
[334711108,1723495847029,-500.0,0.00014639,2]
[334711110,1723495847039,-500.0,0.00014639,2]
[334711112,1723495847049,-316.03724629,0.00014639,2]
[334711114,1723495847059,-500.0,0.00014639,2]
[334711116,1723495847069,-500.0,0.00014639,2]
[334711118,1723495847080,-532.39,0.00014639,2]
[334711120,1723495847090,-902.18,0.00014639,2]
[334711122,1723495847100,-670.02,0.00014639,2]
[334711125,1723495847111,-500.0,0.00014639,2]
[334711127,1723495847120,-500.0,0.00014639,2]
[334711129,1723495847130,-500.0,0.00014639,2]
[334711131,1723495847142,-1010.58,0.00014639,2]
[334711133,1723495847151,-500.0,0.00014639,2]
[334711135,1723495847160,-500.0,0.00014639,2]
[334711137,1723495847170,-1449.67,0.00014639,2]
[334711139,1723495847179,-1220.98,0.00014639,2]
[334711141,1723495847188,-1609.45,0.00014639,2]
[334711142,1723495847197,-500.0,0.00014639,2]
[334711144,1723495847207,-891.57,0.00014639,2]
[334711146,1723495847216,-500.0,0.00014639,2]
[334711148,1723495847225,-500.0,0.00014639,2]
[334711150,1723495847234,-1200.59,0.00014639,2]
[334711152,1723495847243,-500.0,0.00014639,2]
[334711154,1723495847252,-692.84,0.00014639,2]
[334711156,1723495847261,-500.0,0.00014639,2]
[334711159,1723495847272,-500.0,0.00014639,2]
[334711160,1723495847281,-500.0,0.00014639,2]
[334711162,1723495847290,-920.32,0.00014639,2]
[334711164,1723495847299,-500.0,0.00014639,2]
[334711166,1723495847308,-500.0,0.00014639,2]
[334711168,1723495847318,-500.0,0.00014639,2]
[334711170,1723495847327,-500.0,0.00014639,2]
[334711172,1723495847338,-1645.82,0.00014639,2]
[334711174,1723495847347,-4289.93,0.00014639,2]
[334711177,1723495847358,-939.49,0.00014639,2]
[334711179,1723495847368,-500.0,0.00014639,2]
[334711181,1723495847378,-500.0,0.00014639,2]
[334711183,1723495847389,-500.0,0.00014639,2]
[334711185,1723495847406,-671.4,0.00014639,2]
[334711187,1723495847415,-743.89,0.00014639,2]
[334711189,1723495847424,-757.23,0.00014639,2]
[334711191,1723495847433,-500.0,0.00014639,2]
[334711193,1723495847442,-1548.94,0.00014639,2]
[334711195,1723495847451,-500.0,0.00014639,2]
[334711197,1723495847460,-884.38,0.00014639,2]
[334711199,1723495847470,-500.0,0.00014639,2]
[334711201,1723495847479,-500.0,0.00014639,2]
[334711203,1723495847488,-506.99037355,0.00014639,2]
[334711205,1723495847497,-541.38,0.00014639,2]
[334711207,1723495847507,-2526.85,0.00014639,2]
[334711208,1723495847515,-3669.22,0.00014639,2]
[334711210,1723495847524,-500.0,0.0001464,2]
[334711212,1723495847533,-500.0,0.0001464,2]
[334711214,1723495847542,-500.0,0.0001464,2]
[334711216,1723495847552,-500.0,0.0001464,2]
[334711218,1723495847561,-778.3,0.0001464,2]
[334711220,1723495847572,-500.0,0.0001464,2]
[334711222,1723495847583,-500.0,0.0001464,2]
[334711224,1723495847592,-505.39917846,0.0001464,2]
[334711226,1723495847601,-512.53553775,0.0001464,2]
[334711228,1723495847611,-500.0,0.0001464,2]
[334711230,1723495847621,-500.0,0.0001464,2]
[334711232,1723495847631,-509.26425576,0.0001464,2]
[334711234,1723495847644,-514.72593159,0.0001464,2]
[334711236,1723495847654,-500.0,0.0001464,2]
[334711238,1723495847665,-500.0,0.0001464,2]
[334711240,1723495847674,-500.0,0.0001464,2]
[334711242,1723495847683,-500.0,0.0001464,2]
[334711244,1723495847693,-815.07,0.0001464,2]
[334711246,1723495847702,-564.11,0.0001464,2]
[334711248,1723495847712,-500.0,0.0001464,2]
[334711250,1723495847721,-500.0,0.0001464,2]
[334711252,1723495847731,-500.0,0.0001464,2]
[334711254,1723495847741,-500.0,0.0001464,2]
[334711256,1723495847750,-500.0,0.0001464,2]
[334711258,1723495847759,-500.0,0.0001464,2]
[334711260,1723495847769,-500.0,0.0001464,2]
[334711262,1723495847779,-500.0,0.0001464,2]
[334711264,1723495847789,-840.23,0.0001464,2]
[334711266,1723495847798,-500.0,0.0001464,2]
[334711268,1723495847808,-686.09,0.0001464,2]
[334711270,1723495847818,-708.51,0.0001464,2]
[334711272,1723495847827,-500.0,0.0001464,2]
[334711274,1723495847837,-500.0,0.0001464,2]
[334711276,1723495847846,-500.0,0.0001464,2]
[334711277,1723495847856,-500.0,0.0001464,2]
[334711279,1723495847865,-500.0,0.0001464,2]
[334711281,1723495847875,-500.0,0.0001464,2]
[334711283,1723495847885,-500.0,0.0001464,2]
[334711285,1723495847895,-500.0,0.0001464,2]
[334711287,1723495847904,-500.0,0.0001464,2]
[334711289,1723495847914,-500.0,0.0001464,2]
[334711291,1723495847924,-500.0,0.0001464,2]
[334711293,1723495847934,-500.0,0.0001464,2]
[334711295,1723495847944,-980.69,0.0001464,2]
[334711297,1723495847955,-500.0,0.0001464,2]
[334711299,1723495847966,-500.0,0.0001464,2]
[334711301,1723495847976,-506.08531046,0.0001464,2]
[334711304,1723495847987,-500.0,0.0001464,2]
[334711306,1723495847998,-500.0,0.0001464,2]
[334711308,1723495848007,-500.0,0.0001464,2]
[334711309,1723495848017,-500.0,0.0001464,2]
[334711311,1723495848027,-500.0,0.0001464,2]
[334711313,1723495848036,-500.0,0.0001464,2]
[334711316,1723495848047,-500.0,0.0001464,2]
[334711318,1723495848057,-803.72,0.0001464,2]
[334711320,1723495848067,-522.6,0.0001464,2]
[334711322,1723495848076,-500.0,0.0001464,2]
[334711324,1723495848086,-512.71,0.0001464,2]
[334711326,1723495848096,-500.0,0.0001464,2]
[334711327,1723495848105,-673.16,0.0001464,2]
[334711330,1723495848117,-500.0,0.0001464,2]
[334711331,1723495848128,-500.0,0.0001464,2]
[334711333,1723495848141,-665.4,0.0001464,2]
[334711335,1723495848151,-500.0,0.0001464,2]
[334711337,1723495848162,-500.0,0.0001464,2]
[334711339,1723495848173,-500.0,0.0001464,2]
[334711341,1723495848183,-584.04,0.0001464,2]
[334711343,1723495848194,-500.0,0.0001464,2]
[334711345,1723495848205,-500.0,0.0001464,2]
[334711347,1723495848215,-500.0,0.0001464,2]
[334711349,1723495848226,-500.0,0.0001464,2]
[334711351,1723495848237,-500.0,0.0001464,2]
[334711353,1723495848249,-500.0,0.0001464,2]
[334711354,1723495848263,-500.0,0.0001464,2]
[334711357,1723495848275,-500.0,0.0001464,2]
[334711358,1723495848286,-500.0,0.0001464,2]
[334711361,1723495848298,-500.0,0.0001464,2]
[334711362,1723495848308,-500.0,0.0001464,2]
[334711364,1723495848319,-500.0,0.0001464,2]
[334711367,1723495848332,-500.0,0.0001464,2]
[334711368,1723495848342,-500.0,0.0001464,2]
[334711370,1723495848353,-500.0,0.0001464,2]
[334711372,1723495848369,-500.0,0.0001464,2]
[334711374,1723495848381,-500.0,0.0001464,2]
[334711376,1723495848409,-1004.79,0.0001464,2]
[334711378,1723495848422,-500.0,0.0001464,2]
[334711380,1723495848434,-500.0,0.0001464,2]
[334711382,1723495848446,-500.0,0.0001464,2]
[334711384,1723495848457,-625.27312799,0.0001464,2]
[334711386,1723495848469,-379.90088652,0.0001464,2]
[334711388,1723495848481,-500.0,0.0001464,2]
[334711390,1723495848492,-500.0,0.0001464,2]
[334711392,1723495848503,-500.0,0.0001464,2]
[334711394,1723495848513,-515.62,0.0001464,2]
[334711396,1723495848524,-500.0,0.0001464,2]
[334711398,1723495848536,-500.0,0.0001464,2]
[334711400,1723495848547,-500.0,0.0001464,2]
[334711402,1723495848558,-500.0,0.0001464,2]
[334711404,1723495848578,-545.7691022,0.0001464,2]
[334711406,1723495848590,-506.27,0.0001464,2]
[334711408,1723495848601,-522.5658529,0.0001464,2]
[334711410,1723495848611,-633.38,0.0001464,2]
[334711412,1723495848622,-500.0,0.0001464,2]
[334711426,1723495848792,-500.0,0.0001464,2]
[334711428,1723495848804,-500.0,0.0001464,2]
[334711430,1723495848816,-500.0,0.0001464,2]
[334711432,1723495848827,-500.0,0.0001464,2]
[334711434,1723495848838,-500.0,0.0001464,2]
[334711436,1723495848849,-1159.17,0.0001464,2]
[334711438,1723495848860,-500.0,0.0001464,2]
[334711440,1723495848871,-500.0,0.0001464,2]
[334711442,1723495848882,-500.0,0.0001464,2]
[334711444,1723495848893,-674.44,0.0001464,2]
[334711446,1723495848906,-500.0,0.0001464,2]
[334711448,1723495848917,-500.0,0.0001464,2]
[334711450,1723495848928,-540.96,0.0001464,2]
[334711452,1723495848963,-1037.16,0.0001464,2]
[334711454,1723495848974,-500.0,0.0001464,2]
[334711456,1723495848985,-1310.71,0.0001464,2]
[334711458,1723495848996,-500.0,0.0001464,2]
[334711460,1723495849007,-956.32,0.0001464,2]
[334711462,1723495849019,-501.89,0.0001464,2]
[334711464,1723495849030,-500.0,0.0001464,2]
[334711466,1723495849041,-500.0,0.0001464,2]
[334711468,1723495849052,-500.0,0.0001464,2]
[334711470,1723495849063,-500.0,0.0001464,2]
[334711472,1723495849074,-989.31,0.0001464,2]
[334711474,1723495849085,-1864.88,0.0001464,2]
[334711476,1723495849096,-500.0,0.0001464,2]
[334711478,1723495849107,-3088.5,0.0001464,2]
[334711479,1723495849117,-2310.96,0.0001464,2]
[334711482,1723495849129,-500.0,0.0001464,2]
[334711484,1723495849140,-660.12,0.0001464,2]
[334711486,1723495849150,-500.0,0.0001464,2]
[334711488,1723495849162,-538.16,0.0001464,2]
[334711490,1723495849174,-1518.03,0.0001464,2]
[334711492,1723495849185,-500.0,0.0001464,2]
[334711494,1723495849198,-510.44,0.0001464,2]
[334711496,1723495849209,-503.20593666,0.0001464,2]
[334711498,1723495849221,-515.31255409,0.0001464,2]
[334711500,1723495849231,-500.0,0.0001464,2]
[334711502,1723495849242,-500.0,0.0001464,2]
[334711504,1723495849254,-500.0,0.0001464,2]
[334711506,1723495849265,-219.36,0.0001464,2]
[334711507,1723495849276,-504.36,0.0001464,2]
[334711509,1723495849286,-500.0,0.0001464,2]
[334711510,1723495849297,-500.0,0.0001464,2]
[334711511,1723495849307,-500.0,0.0001464,2]
[334711513,1723495849318,-1338.43,0.0001464,2]
[334711514,1723495849327,-965.5,0.0001464,2]
[334711515,1723495849337,-500.0,0.0001464,2]
[334711516,1723495849347,-530.83196321,0.0001464,2]
[334711517,1723495849357,-1198.27,0.0001464,2]
[334711518,1723495849366,-500.0,0.0001464,2]
[334711519,1723495849376,-500.0,0.0001464,2]
[334711520,1723495849387,-500.41,0.0001464,2]
[334711521,1723495849396,-500.0,0.0001464,2]
[334711522,1723495849407,-1802.15,0.0001464,2]
[334711523,1723495849418,-500.0,0.0001464,2]
[334711524,1723495849428,-1097.33,0.0001464,2]
[334711525,1723495849438,-893.59,0.0001464,2]
[334711526,1723495849449,-500.0,0.0001464,2]
[334711527,1723495849459,-500.0,0.00014641,2]
[334711528,1723495849471,-500.0,0.00014641,2]
[334711529,1723495849482,-500.0,0.00014641,2]
[334711530,1723495849493,-500.0,0.00014641,2]
[334711531,1723495849504,-571.62312596,0.00014641,2]
[334711532,1723495849514,-500.0,0.0001465,2]
[334711533,1723495849524,-500.0,0.0001465,2]
[334711534,1723495849534,-500.0,0.0001465,2]
[334711535,1723495849545,-500.0,0.0001465,2]
[334711536,1723495849555,-558.84,0.0001465,2]
[334711537,1723495849566,-1119.33,0.0001465,2]
[334711539,1723495849576,-5945.17,0.0001465,2]
[334711540,1723495849586,-1174.32,0.0001465,2]
[334711542,1723495849598,-678.47,0.0001465,2]
[334711544,1723495849608,-758.26,0.0001465,2]
[334711546,1723495849619,-500.0,0.00014651,2]
[334711547,1723495849631,-500.0,0.00014651,2]
[334711549,1723495849641,-503.9623298,0.00014651,2]
[334711551,1723495849651,-526.01,0.00014661,2]
[334711552,1723495849660,-500.0,0.00014661,2]
[334711553,1723495849671,-500.0,0.00014661,2]
[334711554,1723495849682,-500.0,0.00014661,2]
[334711555,1723495849693,-500.0,0.00014661,2]
[334711556,1723495849702,-2710.71989764,0.00014691,2]
[334711557,1723495849712,-7008.86868586,0.00014691,2]
[334711558,1723495849723,-1765.28037207,0.00014691,2]
[334711559,1723495849733,-2164.74871652,0.00014691,2]
[334711560,1723495849743,-1163.36681761,0.00014691,2]
[334711561,1723495849753,-1612.28857669,0.00014691,2]
[334711562,1723495849764,-1993.66421949,0.00014691,2]
[334711563,1723495849774,-500.0,0.00014814,2]
[334711564,1723495849783,-2228.17,0.00014814,2]
[334711565,1723495849793,-7744.54,0.00014814,2]
[334711566,1723495849803,-1267.76,0.00014814,2]
[334711567,1723495849814,-1370.71,0.00014814,2]
[334711568,1723495849824,-844.33,0.00014814,2]
[334711569,1723495849834,-771.43,0.00014814,2]
[334711570,1723495849843,-881.0,0.00014814,2]
[334711571,1723495849853,-500.0,0.00014903,2]
[334711572,1723495849864,-500.0,0.00014903,2]
[334711573,1723495849874,-500.0,0.00014903,2]
[334711574,1723495849884,-500.0,0.00014903,2]
[334711575,1723495849893,-500.0,0.00014903,2]
[334711576,1723495849905,-500.0,0.00014903,2]
[334711577,1723495849916,-607.4,0.00014903,2]
[334711578,1723495849925,-500.0,0.00014903,2]
[334711579,1723495849935,-500.0,0.00014903,2]
[334711580,1723495849945,-500.0,0.00014903,2]
[334711581,1723495849955,-500.0,0.00014903,2]
[334711582,1723495849965,-500.0,0.00014903,2]
[334711583,1723495849977,-500.0,0.00014903,2]
[334711584,1723495849986,-500.0,0.00014903,2]
[334711585,1723495849996,-500.0,0.00014912,2]
[334711586,1723495850007,-4694.82,0.00014912,2]
[334711587,1723495850016,-1385.83,0.00014912,2]
[334711588,1723495850026,-1287.69,0.00014912,2]
[334711589,1723495850036,-4575.33,0.00014912,2]
[334711590,1723495850049,-1664.01,0.00014912,2]
[334711591,1723495850060,-500.0,0.00014912,2]
[334711592,1723495850070,-500.0,0.00014912,2]
[334711593,1723495850080,-1607.47,0.00014912,2]
[334711594,1723495850089,-1672.82,0.00014912,2]
[334711595,1723495850099,-1050.54,0.00014912,2]
[334711596,1723495850108,-1704.41,0.00014912,2]
[334711597,1723495850119,-8137.85,0.00014912,2]
[334711598,1723495850128,-2576.02,0.00014912,2]
[334711599,1723495850138,-500.0,0.00014913,2]
[334711600,1723495850147,-645.75,0.00014913,2]
[334711601,1723495850157,-574.3,0.00014913,2]
[334711602,1723495850166,-697.88,0.00014913,2]
[334711603,1723495850175,-500.0,0.00014913,2]
[334711604,1723495850185,-832.08,0.00014913,2]
[334711605,1723495850195,-500.0,0.00014913,2]
[334711606,1723495850204,-500.0,0.00014913,2]
[334711607,1723495850214,-500.0,0.00014913,2]
[334711608,1723495850224,-500.0,0.00014913,2]
[334711609,1723495850233,-532.39,0.00014913,2]
[334711610,1723495850242,-902.18,0.00014913,2]
[334711611,1723495850252,-670.02,0.00014913,2]
[334711612,1723495850262,-500.0,0.00014913,2]
[334711613,1723495850271,-500.0,0.00014913,2]
[334711614,1723495850282,-500.0,0.00014913,2]
[334711615,1723495850291,-1010.58,0.00014913,2]
[334711616,1723495850301,-500.0,0.00014913,2]
[334711617,1723495850311,-500.0,0.00014913,2]
[334711618,1723495850321,-1449.67,0.00014913,2]
[334711619,1723495850330,-1220.98,0.00014913,2]
[334711620,1723495850340,-1609.45,0.00014913,2]
[334711621,1723495850350,-500.0,0.00014913,2]
[334711622,1723495850359,-891.57,0.00014913,2]
[334711623,1723495850369,-500.0,0.00014913,2]
[334711624,1723495850379,-500.0,0.00014913,2]
[334711625,1723495850388,-1200.59,0.00014913,2]
[334711626,1723495850398,-500.0,0.00014913,2]
[334711627,1723495850407,-692.84,0.00014913,2]
[334711628,1723495850417,-500.0,0.00014913,2]
[334711629,1723495850426,-500.0,0.00014913,2]
[334711630,1723495850436,-500.0,0.00014913,2]
[334711631,1723495850445,-920.32,0.00014913,2]
[334711632,1723495850456,-500.0,0.00014913,2]
[334711633,1723495850467,-4289.93,0.00014913,2]
[334711634,1723495850479,-1645.82,0.00014913,2]
[334711635,1723495850491,-939.49,0.00014913,2]
[334711636,1723495850501,-500.0,0.00014913,2]
[334711637,1723495850511,-500.0,0.00014913,2]
[334711638,1723495850521,-500.0,0.00014913,2]
[334711639,1723495850530,-671.4,0.00014913,2]
[334711640,1723495850539,-743.89,0.00014913,2]
[334711641,1723495850548,-757.23,0.00014913,2]
[334711642,1723495850559,-500.0,0.00014913,2]
[334711643,1723495850575,-1548.94,0.00014913,2]
[334711644,1723495850585,-500.0,0.00014913,2]
[334711645,1723495850596,-884.38,0.00014913,2]
[334711646,1723495850607,-500.0,0.00014913,2]
[334711647,1723495850619,-500.0,0.00014913,2]
[334711648,1723495850629,-541.38,0.00014913,2]
[334711649,1723495850642,-2526.85,0.00014913,2]
[334711650,1723495850652,-3669.22,0.00014913,2]
[334711651,1723495850661,-500.0,0.00014914,2]
[334711652,1723495850673,-778.3,0.00014914,2]
[334711653,1723495850685,-500.0,0.00014914,2]
[334711654,1723495850697,-500.0,0.00014914,2]
[334711655,1723495850707,-500.0,0.00014914,2]
[334711656,1723495850717,-500.0,0.00014914,2]
[334711657,1723495850727,-815.07,0.00014914,2]
[334711658,1723495850736,-564.11,0.00014914,2]
[334711659,1723495850745,-500.0,0.00014914,2]
[334711660,1723495850755,-500.0,0.00014914,2]
[334711661,1723495850765,-500.0,0.00014914,2]
[334711662,1723495850775,-500.0,0.00014914,2]
[334711663,1723495850786,-500.0,0.00014914,2]
[334711664,1723495850796,-215.49634274,0.00014914,2]
[334711665,1723495850807,-500.0,0.00014914,2]
[334711666,1723495850816,-500.0,0.00014914,2]
[334711667,1723495850827,-840.23,0.00014914,2]
[334711668,1723495850840,-500.0,0.00014914,2]
[334711669,1723495850850,-686.09,0.00014914,2]
[334711670,1723495850859,-708.51,0.00014914,2]
[334711671,1723495850868,-500.0,0.00014914,2]
[334711672,1723495850878,-500.0,0.00014914,2]
[334711673,1723495850887,-500.0,0.00014914,2]
[334711674,1723495850897,-500.0,0.00014914,2]
[334711675,1723495850906,-500.0,0.00014914,2]
[334711676,1723495850915,-500.0,0.00014914,2]
[334711677,1723495850925,-500.0,0.00014914,2]
[334711678,1723495850935,-500.0,0.00014914,2]
[334711679,1723495850945,-980.69,0.00014914,2]
[334711680,1723495850955,-500.0,0.00014914,2]
[334711681,1723495850965,-500.0,0.00014914,2]
[334711682,1723495850975,-500.0,0.00014914,2]
[334711683,1723495850986,-500.0,0.00014914,2]
[334711684,1723495850995,-500.0,0.00014914,2]
[334711685,1723495851006,-500.0,0.00014914,2]
[334711686,1723495851015,-500.0,0.00014914,2]
[334711687,1723495851024,-803.72,0.00014914,2]
[334711688,1723495851034,-522.6,0.00014914,2]
[334711689,1723495851043,-500.0,0.00014914,2]
[334711690,1723495851053,-512.71,0.00014914,2]
[334711691,1723495851062,-500.0,0.00014914,2]
[334711692,1723495851072,-673.16,0.00014914,2]
[334711693,1723495851082,-500.0,0.00014914,2]
[334711694,1723495851092,-665.4,0.00014914,2]
[334711695,1723495851102,-500.0,0.00014914,2]
[334711696,1723495851111,-500.0,0.00014914,2]
[334711697,1723495851121,-584.04,0.00014914,2]
[334711698,1723495851132,-500.0,0.00014914,2]
[334711699,1723495851141,-500.0,0.00014914,2]
[334711700,1723495851151,-500.0,0.00014914,2]
[334711701,1723495851160,-500.0,0.00014914,2]
[334711702,1723495851168,-500.0,0.00014914,2]
[334711703,1723495851178,-500.0,0.00014914,2]
[334711704,1723495851187,-500.0,0.00014914,2]
[334711705,1723495851198,-500.0,0.00014914,2]
[334711706,1723495851208,-500.0,0.00014914,2]
[334711707,1723495851219,-500.0,0.00014914,2]
[334711708,1723495851229,-500.0,0.00014914,2]
[334711709,1723495851239,-500.0,0.00014914,2]
[334711710,1723495851250,-500.0,0.00014914,2]
[334711711,1723495851259,-500.0,0.00014914,2]
[334711712,1723495851268,-1004.79,0.00014914,2]
[334711713,1723495851279,-500.0,0.00014914,2]
[334711714,1723495851287,-627.49681754,0.00014914,2]
[334711715,1723495851297,-500.0,0.00014914,2]
[334711716,1723495851306,-500.0,0.00014914,2]
[334711717,1723495851316,-500.0,0.00014914,2]
[334711718,1723495851325,-500.0,0.00014914,2]
[334711719,1723495851335,-515.62,0.00014914,2]
[334711720,1723495851344,-500.0,0.00014914,2]
[334711721,1723495851353,-500.0,0.00014914,2]
[334711722,1723495851363,-500.0,0.00014914,2]
[334711723,1723495851372,-506.27,0.00014914,2]